[Event "Belgrade Spring Open 2021"]
[Site "Belgrade"]
[Date "2021.04.03"]
[Round "1.10"]
[White "Sahin, Hayrun Nisa"]
[Black "Pastar, Slaven"]
[Result "0-1"]
[ECO "C03"]
[WhiteElo "1948"]
[BlackElo "2374"]
[Annotator "ChessBase"]
[PlyCount "102"]
[EventDate "2021.04.02"]
[EventType "swiss"]
[EventCountry "SRB"]
[SourceTitle "playchess.com"]
[Source "ChessBase"]
[SourceQuality "1"]
[TimeControl "5400+30"]

1. e4 {[%emt 0:00:04]} b6 {[%emt 0:00:00]} 2. d4 {[%emt 0:00:50]} Bb7 {[%emt 0:00:00]} 3. Bd3 {[%emt 0:00:09]} Nf6 {[%emt 0:00:00]} 4. Nd2 {[%emt 0:01:36]} e6 {[%emt 0:00:22]} 5. Ngf3 {[%emt 0:00:20]} d5 {[%emt 0:00:31]} 6. exd5 {[%emt 0:02:09]} Qxd5 {[%emt 0:01:23]} 7. O-O {[%emt 0:02:49]} Nc6 {[%emt 0:04:18]} 8. c3 {[%emt 0:00:50]} g5 {[%emt 0:03:17]} 9. Re1 {[%emt 0:03:28]} g4 {[%emt 0:05:00]} 10. Bc4 {[%emt 0:03:10]} Qh5 {[%emt 0:02:30]} 11. Ne5 {[%emt 0:01:41]} Nxe5 {[%emt 0:09:05]} 12. Rxe5 {[%emt 0:07:08]} Qg6 {[%emt 0:01:00]} 13. Nf1 {[%emt 1:12:16]} Bd6 {[%emt 0:03:42]} 14. Re1 {[%emt 0:00:30]} h5 {[%emt 0:06:15]} 15. Qd3 {[%emt 0:00:00]} Be4 {[%emt 0:07:23]} 16. Qe3 {[%emt 0:00:00]} O-O-O {[%emt 0:02:44]} 17. Qg5 {[%emt 0:00:00]} Rdg8 {[%emt 0:01:21]} 18. Qxg6 {[%emt 0:00:00]} Rxg6 {[%emt 0:00:08]} 19. Ng3 {[%emt 0:00:00]} Bd5 {[%emt 0:05:51]} 20. Bd3 {[%emt 0:00:00]} h4 {[%emt 0:06:01]} 21. Ne4 {[%emt 0:00:00]} Nxe4 {[%emt 0:02:32]} 22. Bxe4 {[%emt 0:00:00]} f5 {[%emt 0:05:30]} 23. Bxd5 {[%emt 0:00:00]} exd5 {[%emt 0:00:06]} 24. g3 {[%emt 0:00:00]} Rg7 {[%emt 0:02:19]} 25. Bf4 {[%emt 0:01:30]} hxg3 {[%emt 0:06:13]} 26. fxg3 {[%emt 0:03:01]} Bxf4 {[%emt 0:00:46]} 27. gxf4 {[%emt 0:00:01]} g3 {[%emt 0:06:14]} 28. Re2 {[%emt 0:01:51]} Rgh7 {[%emt 0:02:49]} 29. Rae1 {[%emt 0:00:33]} Rxh2 {[%emt 0:01:16]} 30. Re5 {[%emt 0:00:20]} Rxb2 {[%emt 0:00:27]} 31. Re8+ {[%emt 0:00:13]} Rxe8 {[%emt 0:00:11]} 32. Rxe8+ {[%emt 0:00:01]} Kd7 {[%emt 0:03:39]} 33. Re5 {[%emt 0:00:01]} Rxa2 {[%emt 0:01:48]} 34. Rxd5+ {[%emt 0:01:32]} Ke6 {[%emt 0:01:33]} 35. Re5+ {[%emt 0:00:01]} Kf6 {[%emt 0:00:12]} 36. d5 {[%emt 0:00:01]} Kg6 {[%emt 0:03:25]} 37. Re3 {[%emt 0:00:03]} g2 {[%emt 0:00:17]} 38. Re7 {[%emt 0:00:23]} Kh5 {[%emt 0:01:06]} 39. Rxc7 {[%emt 0:00:57]} Kg4 {[%emt 0:00:27]} 40. Rg7+ {[%emt 0:00:17]} Kf3 {[%emt 0:02:20]} 41. Kh2 {[%emt 0:00:02]} Kxf4 {[%emt 0:01:49]} 42. d6 {[%emt 0:00:08]} Rd2 {[%emt 0:00:47]} 43. Rxa7 {[%emt 0:00:49]} Rxd6 {[%emt 0:00:51]} 44. Kxg2 {[%emt 0:00:10]} Rd2+ {[%emt 0:00:13]} 45. Kf1 {[%emt 0:00:54]} Kf3 {[%emt 0:00:31]} 46. Ke1 {[%emt 0:00:07]} Rb2 {[%emt 0:00:15]} 47. c4 {[%emt 0:00:14]} f4 {[%emt 0:01:09]} 48. Rb7 {[%emt 0:01:53]} Ke3 {[%emt 0:03:38]} 49. Re7+ {[%emt 0:00:10]} Kd3 {[%emt 0:00:17]} 50. Rf7 {[%emt 0:00:13]} Rb4 {[%emt 0:00:36]} 51. Rxf4 {[%emt 0:00:32]} Ke3 {[%emt 0:00:32]} 0-1

[Event "Belgrade Spring Open 2021"]
[Site "Belgrade"]
[Date "2021.04.03"]
[Round "2.2"]
[White "Sargsyan, Shant"]
[Black "Mitev, Valentin"]
[Result "1-0"]
[ECO "B61"]
[WhiteElo "2598"]
[BlackElo "2166"]
[Annotator "ChessBase"]
[PlyCount "75"]
[EventDate "2021.04.02"]
[EventType "swiss"]
[EventCountry "SRB"]
[SourceTitle "playchess.com"]
[Source "ChessBase"]
[SourceQuality "1"]
[TimeControl "5400+30"]

1. e4 {[%emt 0:00:49]} c5 {[%emt 0:00:06]} 2. Nf3 {[%emt 0:00:15]} d6 {[%emt 0:00:08]} 3. d4 {[%emt 0:00:24]} cxd4 {[%emt 0:00:05]} 4. Nxd4 {[%emt 0:00:12]} Nf6 {[%emt 0:00:05]} 5. Nc3 {[%emt 1:30:50]} Nc6 {[%emt 0:00:32]} 6. Bg5 {[%emt 0:00:00]} Bd7 {[%emt 0:00:04]} 7. Qd2 {[%emt 0:00:00]} Rc8 {[%emt 0:00:15]} 8. f3 {[%emt 0:01:30]} Nxd4 {[%emt 0:00:43]} 9. Qxd4 {[%emt 0:00:00]} Qa5 {[%emt 0:00:04]} 10. h4 {[%emt 0:01:00]} h6 {[%emt 0:04:23]} 11. Be3 {[%emt 0:00:00]} a6 {[%emt 0:02:22]} 12. O-O-O {[%emt 0:00:00]} e5 {[%emt 0:04:43]} 13. Qd2 {[%emt 0:00:00]} Be6 {[%emt 0:01:33]} 14. Kb1 {[%emt 0:00:00]} h5 {[%emt 1:21:57]} 15. Bg5 {[%emt 0:00:00]} Be7 {[%emt 0:00:00]} 16. a3 {[%emt 0:00:00]} b5 {[%emt 0:00:00]} 17. g3 {[%emt 0:00:00]} Rb8 {[%emt 0:01:30]} 18. Bxf6 {[%emt 0:00:00]} gxf6 {[%emt 0:00:00]} 19. f4 {[%emt 0:00:00]} Rg8 {[%emt 0:01:00]} 20. Qe1 {[%emt 0:00:00]} Bd8 {[%emt 0:00:00]} 21. f5 {[%emt 0:00:00]} Bd7 {[%emt 0:00:00]} 22. Be2 {[%emt 0:00:00]} Bc6 {[%emt 0:00:00]} 23. Rxd6 {[%emt 0:00:00]} Rc8 {[%emt 0:00:00]} 24. Bxh5 {[%emt 0:00:00]} Be7 {[%emt 0:00:00]} 25. Re6 {[%emt 0:00:00]} Qc7 {[%emt 0:00:00]} 26. Nd5 {[%emt 0:00:00]} Bxd5 {[%emt 0:00:00]} 27. exd5 {[%emt 0:00:00]} Qxc2+ {[%emt 0:00:00]} 28. Ka1 {[%emt 0:00:00]} Qxf5 {[%emt 0:00:00]} 29. g4 {[%emt 0:00:00]} Rxg4 {[%emt 0:00:00]} 30. Bxg4 Qxg4 {[%emt 0:00:00]} 31. Rg1 {[%emt 0:00:00]} Qc4 {[%emt 0:00:00]} 32. Rg8+ {[%emt 0:00:00]} Kd7 {[%emt 0:00:00]} 33. Rxc8 {[%emt 0:00:00]} Qxc8 {[%emt 0:00:00]} 34. Rc6 {[%emt 0:00:00]} Qb7 {[%emt 0:00:00]} 35. Qc3 {[%emt 0:03:52]} Bd6 {[%emt 0:00:00]} 36. h5 {[%emt 0:00:26]} b4 {[%emt 0:00:00]} 37. axb4 {[%emt 0:00:26]} Qxb4 {[%emt 0:00:00]} 38. Rxd6+ {[%emt 0:00:21]} 1-0

[Event "Belgrade Spring Open 2021"]
[Site "Belgrade"]
[Date "2021.04.03"]
[Round "2.4"]
[White "Sturt, Raven"]
[Black "Petrusic, Velimir"]
[Result "1-0"]
[ECO "B00"]
[WhiteElo "2490"]
[BlackElo "2110"]
[Annotator "ChessBase"]
[PlyCount "109"]
[EventDate "2021.04.02"]
[EventType "swiss"]
[EventCountry "SRB"]
[SourceTitle "playchess.com"]
[Source "ChessBase"]
[SourceQuality "1"]
[TimeControl "5400+30"]

1. e4 {[%emt 0:00:00]} Nc6 {[%emt 0:00:00]} 2. Nc3 {[%emt 0:00:15]} Nf6 {[%emt 0:02:05]} 3. d4 {[%emt 0:03:29]} d5 {[%emt 0:00:36]} 4. e5 {[%emt 0:04:47]} Nd7 {[%emt 0:00:03]} 5. Nxd5 {[%emt 0:00:54]} Ndb8 {[%emt 0:01:47]} 6. Nc3 {[%emt 0:22:00]} Qxd4 {[%emt 0:01:39]} 7. Be3 {[%emt 0:03:17]} Qxd1+ {[%emt 0:13:45]} 8. Rxd1 {[%emt 0:00:04]} e6 {[%emt 0:03:48]} 9. f4 {[%emt 0:04:13]} a6 {[%emt 0:08:06]} 10. g3 {[%emt 0:10:41]} b6 {[%emt 0:05:07]} 11. Bg2 {[%emt 0:03:55]} Bb7 {[%emt 0:00:03]} 12. Nge2 {[%emt 0:01:42]} Na5 {[%emt 0:02:54]} 13. Ne4 {[%emt 0:00:28]} Nd7 {[%emt 0:01:32]} 14. O-O {[%emt 0:05:38]} Be7 {[%emt 0:09:30]} 15. b3 {[%emt 0:01:20]} O-O-O {[%emt 0:02:14]} 16. c3 {[%emt 0:03:51]} g6 {[%emt 0:22:27]} 17. Kf2 {[%emt 0:00:51]} Nc5 {[%emt 0:07:56]} 18. Nxc5 {[%emt 0:00:29]} bxc5 {[%emt 0:00:13]} 19. c4 {[%emt 0:04:48]} Bxg2 {[%emt 0:01:56]} 20. Kxg2 {[%emt 0:00:02]} Nc6 {[%emt 0:05:56]} 21. Kf3 {[%emt 0:00:52]} Kb7 {[%emt 0:00:41]} 22. Ke4 {[%emt 0:01:15]} Nb4 {[%emt 0:03:43]} 23. Nc3 {[%emt 0:00:16]} Kc6 {[%emt 0:01:48]} 24. h3 {[%emt 0:00:20]} h5 {[%emt 0:00:14]} 25. Rxd8 {[%emt 0:04:53]} Rxd8 {[%emt 0:00:02]} 26. Rc1 {[%emt 0:00:05]} a5 {[%emt 0:00:53]} 27. a3 {[%emt 0:01:16]} Na6 {[%emt 0:00:34]} 28. Rd1 {[%emt 0:00:39]} Rxd1 {[%emt 0:00:02]} 29. Nxd1 {[%emt 0:00:03]} Nb8 {[%emt 0:00:39]} 30. Bd2 {[%emt 0:01:43]} Kb6 {[%emt 0:00:07]} 31. Nb2 {[%emt 0:00:58]} Nd7 {[%emt 0:00:28]} 32. Na4+ {[%emt 0:00:05]} Ka6 {[%emt 0:00:07]} 33. Be3 {[%emt 0:00:03]} Kb7 {[%emt 0:01:37]} 34. g4 {[%emt 0:00:06]} hxg4 {[%emt 0:00:37]} 35. hxg4 {[%emt 0:22:12]} Ka6 {[%emt 0:02:12]} 36. f5 {[%emt 0:00:00]} Kb7 {[%emt 0:02:39]} 37. f6 {[%emt 0:00:00]} Bf8 {[%emt 0:00:00]} 38. Bd2 {[%emt 0:00:00]} Ka6 {[%emt 0:00:00]} 39. Nc3 {[%emt 0:00:00]} Nb6 {[%emt 0:00:00]} 40. Kd3 {[%emt 0:00:00]} Nd7 {[%emt 0:00:00]} 41. Bf4 {[%emt 0:00:00]} Nb6 {[%emt 0:00:00]} 42. Ne4 {[%emt 0:00:00]} Nd7 {[%emt 0:02:02]} 43. Ke3 {[%emt 0:00:00]} a4 {[%emt 0:00:26]} 44. bxa4 {[%emt 0:00:00]} Nb6 {[%emt 0:00:20]} 45. Kd3 {[%emt 0:00:00]} Nxa4 {[%emt 0:00:16]} 46. Ng5 {[%emt 0:00:00]} Nb2+ {[%emt 0:00:53]} 47. Kc3 {[%emt 0:00:00]} Nd1+ {[%emt 0:00:09]} 48. Kb3 {[%emt 0:00:00]} Nf2 {[%emt 0:01:08]} 49. Nxf7 {[%emt 0:00:00]} Nxg4 {[%emt 0:00:17]} 50. Nd8 {[%emt 0:00:00]} g5 {[%emt 0:00:38]} 51. Bg3 {[%emt 0:00:00]} Ne3 {[%emt 0:00:40]} 52. Nxe6 {[%emt 0:00:00]} Nf5 {[%emt 0:00:01]} 53. Nxf8 {[%emt 0:00:00]} Nxg3 {[%emt 0:00:01]} 54. f7 {[%emt 0:00:00]} Nf5 {[%emt 0:00:17]} 55. Ne6 {[%emt 0:10:00]} 1-0

[Event "Belgrade Spring Open 2021"]
[Site "Belgrade"]
[Date "2021.04.03"]
[Round "2.5"]
[White "Kocyigit, Buse Naz"]
[Black "Kazakouski, Valery"]
[Result "0-1"]
[ECO "A88"]
[WhiteElo "2103"]
[BlackElo "2476"]
[Annotator "ChessBase"]
[PlyCount "128"]
[EventDate "2021.04.02"]
[EventType "swiss"]
[EventCountry "SRB"]
[SourceTitle "playchess.com"]
[Source "ChessBase"]
[SourceQuality "1"]
[TimeControl "5400+30"]

1. Nf3 {[%emt 0:04:07]} f5 {[%emt 0:00:00]} 2. d4 {[%emt 0:00:06]} Nf6 {[%emt 0:00:21]} 3. c4 {[%emt 0:00:10]} d6 {[%emt 0:00:46]} 4. g3 {[%emt 0:00:57]} g6 {[%emt 0:00:14]} 5. Bg2 {[%emt 0:00:16]} Bg7 {[%emt 0:00:12]} 6. O-O {[%emt 0:00:08]} O-O {[%emt 0:00:17]} 7. Nc3 {[%emt 0:00:34]} c6 {[%emt 0:00:30]} 8. b3 {[%emt 0:00:31]} Na6 {[%emt 0:00:31]} 9. Bb2 {[%emt 0:00:15]} Qc7 {[%emt 0:00:21]} 10. Rc1 {[%emt 0:04:57]} e5 {[%emt 1:31:48]} 11. Nb5 {[%emt 0:16:41]} Qe7 {[%emt 0:00:00]} 12. dxe5 {[%emt 0:07:54]} dxe5 {[%emt 0:00:00]} 13. Ba3 {[%emt 0:15:55]} c5 {[%emt 0:00:00]} 14. Qd6 {[%emt 0:01:33]} Qxd6 {[%emt 0:00:00]} 15. Nxd6 {[%emt 0:01:55]} e4 {[%emt 0:00:00]} 16. Ng5 {[%emt 0:08:14]} Nb4 {[%emt 0:00:00]} 17. Bxb4 {[%emt 0:05:07]} cxb4 {[%emt 0:00:00]} 18. e3 {[%emt 0:02:22]} h6 {[%emt 0:00:00]} 19. Nxc8 {[%emt 0:01:17]} Raxc8 {[%emt 0:00:00]} 20. Ne6 {[%emt 0:00:11]} Rfe8 {[%emt 0:00:00]} 21. Nxg7 {[%emt 0:27:20]} Kxg7 {[%emt 0:05:30]} 22. Rfd1 {[%emt 0:00:00]} Red8 {[%emt 0:00:00]} 23. Rd4 {[%emt 0:01:00]} Kf7 {[%emt 0:01:00]} 24. Bf1 {[%emt 0:00:00]} Ke7 {[%emt 0:00:00]} 25. a3 {[%emt 0:00:00]} bxa3 {[%emt 0:00:00]} 26. Ra1 {[%emt 0:00:00]} a5 {[%emt 0:00:00]} 27. Rxa3 {[%emt 0:00:00]} b6 {[%emt 0:00:00]} 28. b4 {[%emt 0:00:00]} axb4 {[%emt 0:00:00]} 29. Rb3 {[%emt 0:00:00]} Ra8 {[%emt 0:00:00]} 30. Rxb4 {[%emt 0:00:00]} Rxd4 {[%emt 0:00:00]} 31. exd4 {[%emt 0:00:00]} Nd7 {[%emt 0:00:00]} 32. f3 {[%emt 0:00:00]} exf3 {[%emt 0:00:00]} 33. Rb3 {[%emt 0:00:00]} Ra1 {[%emt 0:00:00]} 34. Rxf3 {[%emt 0:00:00]} Nf6 {[%emt 0:00:00]} 35. Kg2 {[%emt 0:00:00]} Ne4 {[%emt 0:00:00]} 36. Bd3 {[%emt 0:01:24]} Ra2+ {[%emt 0:00:00]} 37. Kg1 {[%emt 0:00:18]} Ng5 {[%emt 0:00:00]} 38. Re3+ {[%emt 0:00:01]} Kf6 {[%emt 0:00:00]} 39. h4 {[%emt 0:00:02]} Ne6 {[%emt 0:00:00]} 40. d5 {[%emt 0:00:45]} Nc5 {[%emt 0:00:00]} 41. Kf1 {[%emt 0:02:41]} Ra3 {[%emt 0:00:00]} 42. Ke2 {[%emt 0:00:02]} Ra2+ {[%emt 0:00:00]} 43. Kd1 {[%emt 0:00:39]} Ra7 {[%emt 0:00:00]} 44. Bc2 {[%emt 0:00:30]} Ra1+ {[%emt 0:00:00]} 45. Kd2 {[%emt 0:00:16]} Rf1 {[%emt 0:00:00]} 46. Ke2 {[%emt 0:01:40]} Rg1 {[%emt 0:00:33]} 47. Kd2 {[%emt 0:01:15]} g5 {[%emt 0:03:18]} 48. hxg5+ hxg5 {[%emt 0:00:01]} 49. Re8 {[%emt 0:02:39]} Rg2+ {[%emt 0:02:47]} 50. Kd1 {[%emt 0:00:40]} Rxg3 {[%emt 0:01:58]} 51. Rf8+ {[%emt 0:00:02]} Ke5 {[%emt 0:01:40]} 52. Rxf5+ {[%emt 0:00:02]} Kd4 {[%emt 0:00:11]} 53. d6 {[%emt 0:00:20]} Kc3 {[%emt 0:01:39]} 54. Rxc5 {[%emt 0:01:36]} bxc5 {[%emt 0:00:28]} 55. d7 {[%emt 0:00:36]} Rg1+ {[%emt 0:00:12]} 56. Ke2 {[%emt 0:00:01]} Rg2+ {[%emt 0:00:12]} 57. Ke3 {[%emt 0:00:57]} Rd2 {[%emt 0:00:16]} 58. Bf5 {[%emt 0:00:02]} Rd6 {[%emt 0:02:28]} 59. Ke4 {[%emt 0:00:13]} Kxc4 {[%emt 0:01:09]} 60. Ke5 {[%emt 0:00:01]} Rd5+ {[%emt 0:01:38]} 61. Ke4 {[%emt 0:00:52]} Rd4+ {[%emt 0:00:00]} 62. Ke5 {[%emt 0:00:07]} Kb5 {[%emt 0:00:12]} 63. Ke6 {[%emt 0:01:14]} Kc6 {[%emt 0:00:17]} 64. Ke7 {[%emt 0:01:35]} Kc7 {[%emt 0:01:31]} 0-1

[Event "Belgrade Spring Open 2021"]
[Site "Belgrade"]
[Date "2021.04.03"]
[Round "2.6"]
[White "Draskovic, Luka"]
[Black "Dimitrijevic, Dusan"]
[Result "1/2-1/2"]
[ECO "A40"]
[WhiteElo "2472"]
[BlackElo "2092"]
[Annotator "ChessBase"]
[PlyCount "128"]
[EventDate "2021.04.02"]
[EventType "swiss"]
[EventCountry "SRB"]
[SourceTitle "playchess.com"]
[Source "ChessBase"]
[SourceQuality "1"]
[TimeControl "5400+30"]

1. c4 {[%emt 0:00:00]} b6 {[%emt 0:02:08]} 2. Nc3 {[%emt 0:01:35]} Bb7 {[%emt 0:00:17]} 3. d4 {[%emt 0:02:34]} e6 {[%emt 0:00:14]} 4. a3 {[%emt 0:00:26]} Ne7 {[%emt 0:01:51]} 5. e4 {[%emt 0:03:53]} d6 {[%emt 0:01:16]} 6. Bg5 {[%emt 0:06:50]} Nd7 {[%emt 0:01:43]} 7. Be2 {[%emt 0:01:53]} h6 {[%emt 0:08:23]} 8. Be3 {[%emt 0:00:50]} g6 {[%emt 0:00:24]} 9. Nf3 {[%emt 0:04:15]} Bg7 {[%emt 0:00:14]} 10. Qd2 {[%emt 0:00:34]} f5 {[%emt 0:00:48]} 11. d5 {[%emt 0:06:41]} e5 {[%emt 0:05:57]} 12. g3 {[%emt 0:02:21]} Nc5 {[%emt 0:05:59]} 13. Rb1 {[%emt 0:11:13]} Nxe4 {[%emt 0:07:29]} 14. Nxe4 {[%emt 0:00:07]} fxe4 {[%emt 0:00:01]} 15. Nh4 {[%emt 0:00:59]} Bc8 {[%emt 0:03:29]} 16. Bd1 {[%emt 0:05:54]} Bh3 {[%emt 0:02:00]} 17. Ba4+ {[%emt 0:07:49]} Kf7 {[%emt 0:03:22]} 18. Qe2 {[%emt 0:15:20]} Rf8 {[%emt 0:05:03]} 19. Bc2 {[%emt 0:01:12]} Kg8 {[%emt 0:15:14]} 20. Bxe4 {[%emt 0:00:17]} g5 {[%emt 0:01:30]} 21. Ng2 {[%emt 0:03:08]} Nf5 {[%emt 0:02:53]} 22. O-O {[%emt 0:01:19]} Qd7 {[%emt 0:06:28]} 23. Rfe1 {[%emt 0:07:12]} Rf6 {[%emt 0:03:00]} 24. Rbd1 {[%emt 0:02:22]} Raf8 {[%emt 0:00:20]} 25. Rd2 {[%emt 0:00:20]} Qf7 {[%emt 0:00:30]} 26. f3 {[%emt 0:05:01]} Ne7 {[%emt 0:02:26]} 27. Bf2 {[%emt 0:02:39]} h5 {[%emt 0:01:51]} 28. Be3 {[%emt 0:00:42]} Bh6 {[%emt 0:00:24]} 29. Rdd1 {[%emt 0:01:54]} Nf5 {[%emt 0:03:10]} 30. Qd3 {[%emt 0:03:10]} Bxg2 {[%emt 0:01:14]} 31. Kxg2 {[%emt 0:00:02]} Nxe3+ {[%emt 0:00:07]} 32. Qxe3 {[%emt 0:01:27]} g4 {[%emt 0:00:02]} 33. Qd3 {[%emt 0:00:40]} gxf3+ {[%emt 0:00:05]} 34. Kf2 {[%emt 0:00:03]} h4 {[%emt 0:01:10]} 35. Rg1 {[%emt 0:00:29]} Kh8 {[%emt 0:00:03]} 36. Qf1 {[%emt 0:01:17]} Qh5 {[%emt 0:00:41]} 37. Qh3 {[%emt 0:00:49]} Qg5 {[%emt 0:09:22]} 38. Rd3 {[%emt 0:00:12]} Rg8 {[%emt 0:00:19]} 39. Qd7 {[%emt 0:00:39]} Qg7 {[%emt 0:01:27]} 40. Qxg7+ {[%emt 0:00:24]} Rxg7 {[%emt 0:00:12]} 41. Rxf3 {[%emt 0:00:17]} Rgf7 {[%emt 0:01:44]} 42. Rxf6 {[%emt 0:00:10]} Rxf6+ {[%emt 0:00:00]} 43. Ke2 {[%emt 0:00:09]} a5 {[%emt 0:01:05]} 44. a4 {[%emt 0:01:57]} hxg3 {[%emt 0:00:10]} 45. hxg3 {[%emt 0:00:25]} Kg7 {[%emt 0:00:11]} 46. Rh1 {[%emt 0:00:14]} Rf8 {[%emt 0:01:01]} 47. Rh4 {[%emt 0:00:14]} Rh8 {[%emt 0:00:32]} 48. Rg4+ {[%emt 0:00:47]} Kf7 {[%emt 0:02:17]} 49. Rh4 {[%emt 0:00:55]} Bg7 {[%emt 0:00:29]} 50. Rxh8 {[%emt 0:00:26]} Bxh8 {[%emt 0:00:01]} 51. Kf3 {[%emt 0:00:09]} Bg7 {[%emt 0:02:51]} 52. Kg4 {[%emt 0:00:06]} Bh6 {[%emt 0:01:26]} 53. Kf5 {[%emt 0:00:05]} Bc1 {[%emt 0:00:03]} 54. b3 {[%emt 0:01:53]} Be3 {[%emt 0:00:26]} 55. g4 {[%emt 0:00:17]} Bc5 {[%emt 0:00:19]} 56. g5 {[%emt 0:00:08]} Be3 {[%emt 0:00:07]} 57. g6+ {[%emt 0:00:36]} Kg7 {[%emt 0:00:03]} 58. Ke6 {[%emt 0:00:18]} Bd4 {[%emt 0:00:28]} 59. Kd7 {[%emt 0:00:06]} Bc5 {[%emt 0:00:15]} 60. Kxc7 {[%emt 0:00:06]} Kf6 {[%emt 0:00:06]} 61. Kd7 {[%emt 0:00:37]} Bb4 {[%emt 0:00:31]} 62. Ke8 {[%emt 0:00:25]} Kg7 {[%emt 0:00:05]} 63. Ke7 {[%emt 0:00:04]} Bc5 {[%emt 0:00:07]} 64. Ke6 {[%emt 0:00:05]} Bb4 {[%emt 0:00:12]} 1/2-1/2

[Event "Belgrade Spring Open 2021"]
[Site "Belgrade"]
[Date "2021.04.03"]
[Round "2.7"]
[White "Todorovic, Goran M"]
[Black "Poleksic, Dusan"]
[Result "1-0"]
[ECO "B23"]
[WhiteElo "2406"]
[BlackElo "2092"]
[Annotator "ChessBase"]
[PlyCount "39"]
[EventDate "2021.04.02"]
[EventType "swiss"]
[EventCountry "SRB"]
[SourceTitle "playchess.com"]
[Source "ChessBase"]
[SourceQuality "1"]
[TimeControl "5400+30"]

1. e4 {[%emt 0:00:00]} c5 {[%emt 0:02:27]} 2. Nc3 {[%emt 0:00:00]} g6 {[%emt 0:01:04]} 3. d4 {[%emt 0:04:04]} cxd4 {[%emt 0:02:23]} 4. Qxd4 {[%emt 0:00:06]} Nf6 {[%emt 0:00:16]} 5. Bg5 {[%emt 0:08:04]} Nc6 {[%emt 0:02:24]} 6. Qd2 {[%emt 0:00:11]} Bg7 {[%emt 0:01:02]} 7. Bh6 {[%emt 0:07:50]} O-O {[%emt 0:05:53]} 8. O-O-O {[%emt 0:06:33]} Qa5 {[%emt 0:08:43]} 9. f3 {[%emt 0:08:49]} d6 {[%emt 0:01:09]} 10. h4 {[%emt 0:01:41]} Be6 {[%emt 0:02:52]} 11. h5 {[%emt 0:08:20]} Nxh5 {[%emt 0:08:23]} 12. Bxg7 {[%emt 0:00:27]} Kxg7 {[%emt 0:00:03]} 13. g4 {[%emt 0:00:16]} Nf6 {[%emt 0:00:03]} 14. Qh6+ {[%emt 0:03:07]} Kg8 {[%emt 0:00:04]} 15. Nge2 {[%emt 0:04:40]} Ne5 {[%emt 0:16:32]} 16. g5 {[%emt 0:12:16]} Nh5 {[%emt 0:01:09]} 17. Nf4 {[%emt 0:04:09]} Bg4 {[%emt 0:01:16]} 18. Ncd5 {[%emt 0:06:58]} Nxf3 {[%emt 0:20:24]} 19. Nxh5 {[%emt 0:01:04]} Bxh5 {[%emt 0:02:54]} 20. Rxh5 {[%emt 0:00:22]} 1-0

[Event "Belgrade Spring Open 2021"]
[Site "Belgrade"]
[Date "2021.04.03"]
[Round "2.9"]
[White "Pastar, Slaven"]
[Black "Radojicic, Aleksandar M"]
[Result "1-0"]
[ECO "A43"]
[WhiteElo "2374"]
[BlackElo "2082"]
[Annotator "ChessBase"]
[PlyCount "86"]
[EventDate "2021.04.02"]
[EventType "swiss"]
[EventCountry "SRB"]
[SourceTitle "playchess.com"]
[Source "ChessBase"]
[SourceQuality "1"]
[TimeControl "5400+30"]

1. d4 {[%emt 0:00:15]} Nf6 {[%emt 0:00:00]} 2. Nf3 {[%emt 0:00:17]} c5 {[%emt 0:00:04]} 3. d5 {[%emt 0:00:39]} g6 {[%emt 0:01:15]} 4. Nc3 {[%emt 0:00:53]} Bg7 {[%emt 0:00:20]} 5. e4 {[%emt 0:00:25]} d6 {[%emt 0:00:08]} 6. Bb5+ {[%emt 0:00:39]} Bd7 {[%emt 0:01:37]} 7. a4 {[%emt 0:00:06]} O-O {[%emt 0:04:59]} 8. O-O {[%emt 0:00:11]} Na6 {[%emt 0:06:32]} 9. Re1 {[%emt 0:00:28]} Nc7 {[%emt 0:06:55]} 10. Bc4 {[%emt 0:02:27]} Bg4 {[%emt 0:02:10]} 11. h3 {[%emt 0:01:58]} Bxf3 {[%emt 0:01:16]} 12. Qxf3 {[%emt 0:00:10]} Nd7 {[%emt 0:07:15]} 13. Qg3 {[%emt 0:01:39]} f5 {[%emt 0:12:33]} 14. Bg5 {[%emt 0:14:15]} h6 {[%emt 0:19:05]} 15. Bd2 {[%emt 0:03:43]} f4 {[%emt 0:10:15]} 16. Bxf4 {[%emt 0:01:42]} g5 {[%emt 0:00:09]} 17. Be3 {[%emt 0:11:13]} Ne5 {[%emt 0:06:58]} 18. Bf1 {[%emt 0:02:27]} Ng6 {[%emt 0:03:11]} 19. Qg4 {[%emt 0:02:25]} Kh7 {[%emt 0:04:49]} 20. Ne2 {[%emt 0:02:58]} Ne5 {[%emt 0:02:25]} 21. Qh5 {[%emt 0:01:19]} e6 {[%emt 0:03:36]} 22. Nc3 {[%emt 0:04:49]} Ng6 {[%emt 0:01:07]} 23. Rad1 {[%emt 0:02:33]} exd5 {[%emt 0:01:08]} 24. exd5 {[%emt 0:00:48]} Nf4 {[%emt 0:00:14]} 25. Qg4 {[%emt 0:01:52]} Bxc3 {[%emt 0:03:54]} 26. bxc3 {[%emt 0:00:24]} Nfxd5 {[%emt 0:00:13]} 27. Qe4+ {[%emt 0:02:53]} Kg7 {[%emt 0:00:11]} 28. Bd3 {[%emt 0:06:23]} Rf6 {[%emt 0:01:10]} 29. Qh7+ {[%emt 0:00:58]} Kf8 {[%emt 0:00:01]} 30. Bg6 {[%emt 0:02:10]} Rxg6 {[%emt 0:00:58]} 31. Qxg6 {[%emt 0:00:08]} Qf6 {[%emt 0:00:07]} 32. Qxf6+ {[%emt 0:00:12]} Nxf6 {[%emt 0:00:01]} 33. Rxd6 {[%emt 0:00:07]} Nce8 {[%emt 0:00:47]} 34. Rdd1 {[%emt 0:00:47]} Rc8 {[%emt 0:00:17]} 35. h4 {[%emt 0:00:44]} Ne4 {[%emt 0:00:15]} 36. Rd7 {[%emt 0:00:19]} Nxc3 {[%emt 0:00:44]} 37. hxg5 {[%emt 0:00:39]} hxg5 {[%emt 0:00:28]} 38. Bxg5 {[%emt 0:00:26]} Nxa4 {[%emt 0:00:07]} 39. Rxb7 {[%emt 0:00:30]} a6 {[%emt 0:00:58]} 40. Re3 {[%emt 0:00:18]} c4 {[%emt 0:00:29]} 41. Rg3 {[%emt 0:00:53]} Nc7 {[%emt 0:00:59]} 42. Bf4 {[%emt 0:00:38]} Ne6 {[%emt 0:00:42]} 43. Bd6+ {[%emt 0:00:07]} Ke8 {[%emt 0:01:08]} 1-0